Cogmind - Beta 14 @@@ ROGUE MODE // 2024.10.05 @ 04:17:21 Player: m3rt Result: Destroyed by GK-6QR(B) with Heavy Battle Rifle Performance ------------- Evolutions (4) 2000 Regions Visited (10) 2000 Robots Destroyed (113) 565 Value Destroyed (3316) 3316 Prototype IDs (13) 260 Alien Tech Used (0) 0 Bonus (515) 515 TOTAL SCORE: 8656 Bonus ------- Follower Combat Kills 299 Met Imprinter 300 Friendly Fire -84 Cogmind --------- Core Integrity 0/850 Matter 191/300 Energy 170/170 System Corruption 30% Temperature Cool (9) Movement Core (450) Ox8 Location -6/Zion Parts ------- > --- POWER (1) -------- Makeshift Power Source > --- PROPULSION (4) --- (None) > --- UTILITY (8) ------ Large Storage Unit Salvage Targeting Computer Improved Melee Analysis Suite > --- WEAPON (2) ------- Power Maul > --- INVENTORY (15) --- Enhanced Nuclear Core Makeshift Leg Makeshift Leg Makeshift Leg Improved Sensor Array Improved Signal Interpreter Advanced Terrain Scanner Improved EM Pulse Cannon Proton Cannon Heavy Shock Bomb Launcher Heavy Missile Launcher Rocket Array Ripper Makeshift Sword Great Axe Peak State ------------ > --- POWER ------------ Cooled Deuterium Engine > --- PROPULSION ------- Carbon-fiber Leg VSS Leg Improved Carbon-fiber Leg Flexi-carbon Leg > --- UTILITY ---------- Large Storage Unit Improved Sensor Array Improved Signal Interpreter Advanced Terrain Scanner Improved Melee Analysis Suite Phase Shifter Makeshift Heavy Armor Plating > --- WEAPON ----------- Proton Cannon Coil Gun > --- INVENTORY -------- Enhanced Nuclear Core Improved Sensor Array Improved Signal Interpreter Advanced Terrain Scanner Hardened Heavy Armor Plating Improved EM Pulse Cannon Heavy Shock Bomb Launcher Heavy Missile Launcher Rocket Array Power Maul Impact Mace Impact Mace Ripper Great Axe [Rating: 69] Favorites ----------- Power Cooled Deuterium Engine Engine Cooled Deuterium Engine Power Core Light Nuclear Core Propulsion VSS Leg Treads Armored Treads Leg VSS Leg Wheel Armored Huge Wheel Flight Unit Makeshift Flight Unit Utility Large Storage Unit Device Improved Sensor Array Storage Large Storage Unit Processor Improved Signal Interpreter Hackware Hacking Suite Protection Hardened Heavy Armor Plating Weapon Great Axe Energy Gun Advanced Beam Rifle Energy Cannon Plasma Cannon Ballistic Gun Heavy Assault Rifle Ballistic Cannon Mini Assault Cannon Launcher Mini Grenade Launcher Special Weapon Mining Laser Impact Weapon Impact Mace Slashing Weapon Great Axe Build | -11 -10 -10 -10 -8 -7 -7 -6 -6 -6 -6 ------- Run | Yrd Mat Min Sub Mat Fac Sto Fac Low Low Zio Slots Evolved 8 | . . . . 4 2 . 2 . . . Power . | . . . . . . . . . . . Propulsion 2 | . . . . 2 . . . . . . Utility 6 | . . . . 2 2 . 2 . . . Weapon . | . . . . . . . . . . . Parts Attached 172 | . 14 2 6 20 38 31 13 3 1 44 Power 25 | . . 1 2 3 8 6 . 1 . 4 Engine 19 | . . 1 1 3 4 5 . 1 . 4 Core 6 | . . . 1 . 4 1 . . . . Reactor . | . . . . . . . . . . . Propulsion 41 | . 2 . . 5 3 7 4 1 . 19 Treads 1 | . . . . . . . . . . 1 Leg 34 | . 2 . . 5 1 4 4 1 . 17 Wheel 5 | . . . . . 2 3 . . . . Hover . | . . . . . . . . . . . Flight 1 | . . . . . . . . . . 1 Utility 50 | . 3 . . 4 16 8 8 1 1 9 Device 23 | . 2 . . 3 9 1 4 1 . 3 Storage 3 | . 1 . . 1 . 1 . . . . Processor 14 | . . . . . 7 4 2 . . 1 Hackware 1 | . . . . . . . 1 . . . Protection 9 | . . . . . . 2 1 . 1 5 Artifact . | . . . . . . . . . . . Weapon 56 | . 9 1 4 8 11 10 1 . . 12 Energy Gun 10 | . 1 . . 4 3 2 . . . . Energy Cannon 6 | . 1 . . . 3 1 . . . 1 Ballistic Gun 12 | . 4 . 2 4 . . . . . 2 Ballistic Cannon 1 | . . . . . . 1 . . . . Launcher 11 | . 3 1 1 . 3 1 . . . 2 Special Weapon 1 | . . . 1 . . . . . . . Impact Weapon 7 | . . . . . . 1 . . . 6 Slashing Weapon 8 | . . . . . 2 4 1 . . 1 Piercing Weapon . | . . . . . . . . . . . Special Melee Weapon . | . . . . . . . . . . . Unidentified Prototypes 13 | . . . . 2 2 9 . . . . Corrupted Parts 4 | . . . . . . . . . . 4 System Corruption 11 | . . . . . . . . . . 11 Parts Lost 44 | . 1 . 2 6 6 2 2 2 . 23 Power 6 | . . . 1 2 1 . . 1 . 1 Propulsion 17 | . . . . 2 1 1 . . . 13 Utility 16 | . . . . 1 4 1 1 1 . 8 Weapon 5 | . 1 . 1 1 . . 1 . . 1 Highest Loss Streak 5 | . 1 . 2 5 2 1 1 2 . 5 To Critical Strikes 1 | . . . . . . . . . . 1 Average Slot Usage (%) 86 | . 98 100 99 78 76 84 88 92 93 83 Engine 7 | . 14 14 11 4 5 6 6 5 6 5 Leg 20 | . 28 28 28 29 12 3 24 26 26 23 Wheel 1 | . . . . . . 13 . . . . Device 14 | . 13 14 14 21 16 7 14 16 20 12 Storage 7 | . 14 14 14 7 7 7 6 6 6 6 Processor 12 | . . . . . 15 24 21 16 13 12 Protection 2 | . . . . . . 4 2 6 6 6 Energy Gun 2 | . 10 14 1 4 4 . . . . . Energy Cannon 1 | . 3 . . . 5 . . . . . Ballistic Gun 2 | . 13 12 11 6 . . . . . . Launcher 1 | . . 1 12 1 1 . . . . . Impact Weapon 1 | . . . . . . . . . . 6 Slashing Weapon 6 | . . . . . 2 14 11 13 13 4 Peak Build Rating 69 | . 13 13 15 43 55 51 59 63 67 69 Average Rating 45 | . 8 13 13 39 45 48 53 60 66 60 On Entrance 33 | 6 6 13 13 15 38 42 43 59 63 67 Naked Turns . | . . . . . . . . . . . Heaviest Build 70 | 14 32 32 32 36 45 43 61 62 63 70 Greatest Support 78 | 20 26 26 26 76 68 56 60 65 65 78 Greatest Overweight (x) 20 | . 1 1 1 1 13 1 1 20 . 8 Average Overweight (x) . | . . 1 1 . . . . . . . Largest Inventory Capacity 15 | . 15 15 15 15 15 15 15 15 15 15 Average Capacity 14 | . 13 15 15 15 15 15 15 15 15 15 Most Carried 15 | . 15 15 15 15 15 15 15 15 15 15 Average Carried 14 | . 11 13 13 11 14 14 14 14 14 14 Final Capacity 15 | 8 15 15 15 15 15 15 15 15 15 15 Final Carried 15 | 6 15 14 14 15 15 11 15 14 15 15 Class Distribution -------------------- 41% | Mutant 34% | Gladiator 10% | Scavenger-Gladiator 5% | Scavenger-Mutant 4% | Commander-Gladiator Dominant Class ---------------- Mutant | -10/Materials Mutant | -10/Mines Mutant | -10/Subcaves Mutant | -8/Materials Mutant | -7/Factory Gladiator | -7/Storage Scavenger-Gladiator | -6/Factory Gladiator | -6/Lower Caves Gladiator | -6/Lower Caves Gladiator | -6/Zion Resources | -11 -10 -10 -10 -8 -7 -7 -6 -6 -6 -6 ----------- Run | Yrd Mat Min Sub Mat Fac Sto Fac Low Low Zio Matter Collected 2845 | 196 161 162 141 283 559 700 130 30 10 473 Remotely . | . . . . . . . . . . . Salvage Created 3574 | . 364 53 198 413 561 868 137 251 . 729 Parts 230 | . 31 6 19 34 29 46 10 10 . 45 Haulers Intercepted 1 | . . . . 1 . . . . . . Recyclers Shooed 3 | . . . . 1 1 . 1 . . . Parts Field Recycled . | . . . . . . . . . . . Retrieved Matter . | . . . . . . . . . . . Parts Self-Destructed 16 | . . . 9 . . . . 6 1 . Prevented 1 | . . . . . . . . 1 . . Kills | -11 -10 -10 -10 -8 -7 -7 -6 -6 -6 -6 ------- Run | Yrd Mat Min Sub Mat Fac Sto Fac Low Low Zio Combat Hostiles Destroyed 72 | . 10 . 12 14 12 13 1 2 . 8 Melee 18 | . . . . . 1 13 1 2 . 1 Guns 19 | . 4 . 3 8 4 . . . . . Cannons 2 | . . . . . 2 . . . . . AOE 32 | . 6 . 9 6 5 . . . . 6 Classes Destroyed 18 | . 5 1 2 2 3 1 . 1 . 3 Worker 6 | . 2 . . 1 . 2 1 . . . Builder 1 | . 1 . . . . . . . . . Tunneler 1 | . . 1 . . . . . . . . Hauler 1 | . . . . 1 . . . . . . Recycler 3 | . . . . . 2 1 . . . . Operator 2 | . . . . . 1 1 . . . . Watcher 7 | . 2 . . . 2 1 2 . . . Swarmer 22 | . 3 . 4 7 8 . . . . . Grunt 16 | . 7 . . 3 . 5 1 . . . Duelist 1 | . . . . 1 . . . . . . Sentry 11 | . . . 1 3 2 5 . . . . Hunter 3 | . . . . . . 1 . 2 . . Programmer 4 | . . . . . 2 2 . . . . Subdweller 7 | . . . 7 . . . . . . . Zionite 38 | . . . . . . . . . . 38 Decomposer 1 | . . . . . . . . 1 . . Tinkerer 3 | . . . . . . . . 1 . 2 Butcher 1 | . . . . . . . . . . 1 Martyr 1 | . . . . . . . . . . 1 Mutant 6 | . . . . . . . . . . 6 Best Kill Streak 8 | . 6 1 6 8 3 3 3 2 . 8 Combat Bots Only 7 | . 3 . 6 7 3 3 1 2 . 4 Max Kills in Single Turn 4 | . 2 1 1 2 3 1 1 1 . 4 Gunslinging . | . . . . . . . . . . . Exploded 4 | . 2 . 1 2 3 . . . . 4 Melee 1 | . . . . . 1 1 1 1 . 1 Uniques/NPCs Destroyed . | . . . . . . . . . . . Combat | -11 -10 -10 -10 -8 -7 -7 -6 -6 -6 -6 -------- Run | Yrd Mat Min Sub Mat Fac Sto Fac Low Low Zio Hostile Shots Fired 909 | . 53 . 32 73 116 191 26 39 . 379 Missed 279 | . 14 . 9 17 35 55 5 5 . 139 Damage Taken 10820 | . 446 30 404 1040 1584 1258 489 611 . 4958 Core 1898 | . 88 . 89 217 374 268 62 38 . 762 Absorbed by Shields . | . . . . . . . . . . . Ignored by Resistances 64 | . . . . . . . . . . 64 Core Remaining (%) 49 | 100 . . 29 60 . 8 . . . . Volleys Fired 182 | . 36 8 31 40 47 . . . . 20 Largest 2 | . 2 2 2 2 2 . . . . 2 Hottest 160 | . 80 68 100 88 160 . . . . 105 Shots Fired 261 | . 63 14 36 55 72 . . . . 21 Gun 151 | . 42 12 15 49 25 . . . . 8 Cannon 43 | . 12 . . . 26 . . . . 5 Launcher 63 | . 9 2 17 6 21 . . . . 8 Special 4 | . . . 4 . . . . . . . Kinetic 72 | . 27 6 10 21 . . . . . 8 Thermal 93 | . 12 . 4 28 49 . . . . . Explosive 63 | . 9 2 17 6 21 . . . . 8 Electromagnetic 33 | . 15 6 5 . 2 . . . . 5 Robot Hit Streak 17 | . 10 5 15 8 17 . . . . 5 Robot Miss Streak 7 | . 4 1 1 2 2 . . . . 7 Penetration Max 1 | . . . . . . . . . . 1 Secondary Targets 2 | . 1 . . 1 . . . . . . Max Gunslinging Chain 1 | . 1 . . 1 . . . . . . Shots Hit Robots 297 | . 33 8 18 35 41 48 15 14 . 85 Core Hits 196 | . 28 3 19 25 28 22 4 8 . 59 Critical Kills 4 | . . . . 1 . . . . . 3 Critical Parts Destroyed 13 | . . . . . . . . . . 13 Critical Strikes 35 | . 1 1 . 2 1 9 2 2 . 17 Burn 1 | . . . . 1 . . . . . . Destroy 1 | . . . . 1 . . . . . . Corrupt 2 | . 1 1 . . . . . . . . Smash 17 | . . . . . . . . . . 17 Sever 14 | . . . . . 1 9 2 2 . . Melee Attacks 242 | . . . . . 11 82 23 18 . 108 Impact 103 | . . . . . . . . . . 103 Slashing 139 | . . . . . 11 82 23 18 . 5 Piercing . | . . . . . . . . . . . Sneak Attacks 13 | . . . . . . 6 2 2 . 3 Combat Hostiles . | . . . . . . . . . . . Follow-up Attacks 19 | . . . . . . 8 2 2 . 7 Damage Inflicted 13422 | . 1006 171 1219 873 1394 2240 677 820 . 5022 Guns 1843 | . 351 113 200 535 485 . . . . 159 Cannons 722 | . 102 . . . 515 . . . . 105 Explosions 3623 | . 553 58 1019 338 307 . . . . 1348 Melee 7234 | . . . . . 87 2240 677 820 . 3410 Ramming . | . . . . . . . . . . . Kinetic 768 | . 170 47 147 245 . . . . . 159 Thermal 1420 | . 102 58 . 290 970 . . . . . Explosive 3565 | . 553 . 1019 338 307 . . . . 1348 Electromagnetic 435 | . 181 66 53 . 30 . . . . 105 Impact 3410 | . . . . . . . . . . 3410 Slashing 3824 | . . . . . 87 2240 677 820 . . Piercing . | . . . . . . . . . . . Highest Corruption 30 | . 1 1 1 4 17 19 1 1 1 30 Average Corruption 6 | . 1 1 1 4 6 18 1 1 1 13 Corruption Purged 2 | . . . . . 2 . . . . . Corruption Blocked . | . . . . . . . . . . . Effects 134 | . 4 4 9 8 22 45 1 6 2 33 Message Errors 33 | . . 3 1 3 7 11 . 2 . 6 Matter Fused 34 | . 2 . 4 4 2 13 . . . 9 Heat Flow Errors 16 | . 2 . 1 1 3 2 . 2 1 4 Energy Discharges 15 | . . . . . 4 7 . 2 . 2 Parts Rejected 4 | . . . . . 1 1 . . . 2 Parts Fused 1 | . . . . . . 1 . . . . Data Loss (minor) 15 | . . 1 2 . 3 4 1 . . 4 Data Loss (major) 3 | . . . 1 . . 2 . . . . Misfires 1 | . . . . . 1 . . . . . Alerts 6 | . . . . . 1 3 . . 1 1 Misdirections 6 | . . . . . . 1 . . . 5 Overload Shots . | . . . . . . . . . . . Overflow Damage 1685 | . 37 . 7 23 30 186 184 117 . 1101 Projectiles 30 | . . . . . 30 . . . . . Explosions 67 | . 37 . 7 23 . . . . . . Melee 1588 | . . . . . . 186 184 117 . 1101 Knockbacks 23 | . . . . . . . . . . 23 Impact 23 | . . . . . . . . . . 23 Kinetic . | . . . . . . . . . . . Secondary . | . . . . . . . . . . . Self-Inflicted Damage 220 | . . 30 32 29 46 . . . . 83 Shots 8 | . . 1 1 1 1 . . . . 4 Rammed . | . . . . . . . . . . . Targets Rammed . | . . . . . . . . . . . Kicked . | . . . . . . . . . . . Crushed . | . . . . . . . . . . . Highest Temperature 402 | . 351 4 66 150 402 178 . 254 147 265 Average Temperature 92 | . 127 4 41 19 79 92 . 121 75 95 Received Heat Transfer 1541 | . 231 . 90 252 108 351 99 . . 410 Effects 1 | . . . . . . . . . . 1 Energy Bleed 1 | . . . . . . . . . . 1 Siege Activations . | . . . . . . . . . . . Robots Corrupted 11 | . . . . . . . . . . 11 Combat Hostiles 1 | . . . . . . . . . . 1 Parts Fried 11 | . 1 . . . . . . . . 10 Impact Corruptions 35 | . . . . . . . . . . 35 Robots Melted . | . . . . . . . . . . . Combat Hostiles . | . . . . . . . . . . . Parts Melted 13 | . . . . 1 9 2 . . . 1 Heat Transferred 2908 | . 222 50 . 740 1896 . . . . . Parts Sabotaged . | . . . . . . . . . . . Parts Stolen . | . . . . . . . . . . . Parts Stripped . | . . . . . . . . . . . Power Chain Reactions 1 | . . 1 . . . . . . . . Alert | -11 -10 -10 -10 -8 -7 -7 -6 -6 -6 -6 ------- Run | Yrd Mat Min Sub Mat Fac Sto Fac Low Low Zio Peak Influence 409 | . 349 103 . 306 250 409 338 . . . Initial 185 | . . 78 . . 87 . 185 . . . Average 121 | . 127 83 . 203 83 122 163 . . . Maximum Alert Level 2 | . 1 . . 1 1 2 1 . . . Low Security (%) 77 | . 73 100 . 34 85 78 76 . . . Level 1 22 | . 26 . . 65 14 19 23 . . . Level 2 . | . . . . . . 1 . . . . Level 3 . | . . . . . . . . . . . Level 4 . | . . . . . . . . . . . Level 5 . | . . . . . . . . . . . High Security . | . . . . . . . . . . . Max Security . | . . . . . . . . . . . Squads Dispatched 18 | . 2 . . . 5 6 5 . . . Investigation 1 | . . . . . 1 . . . . . Extermination 6 | . . . . . 3 2 1 . . . Reinforcement 8 | . 2 . . . 1 2 3 . . . Assault 2 | . . . . . . 2 . . . . Garrison 1 | . . . . . . . 1 . . . Intercept . | . . . . . . . . . . . Searches Triggered . | . . . . . . . . . . . Construction Impeded . | . . . . . . . . . . . Haulers Reinforced 1 | . . . . . . . 1 . . . Active Scanning Responses . | . . . . . . . . . . . Cargo Convoy Interrupts . | . . . . . . . . . . . Stealth | -11 -10 -10 -10 -8 -7 -7 -6 -6 -6 -6 --------- Run | Yrd Mat Min Sub Mat Fac Sto Fac Low Low Zio Distress Signals 5 | . 3 . . . . . 2 . . . Communications Jammed . | . . . . . . . . . . . Distress Signals . | . . . . . . . . . . . Times Spotted 162 | . 18 . 12 15 18 20 15 2 . 62 Peak Tracking Total 13 | . 3 . 3 4 4 4 3 2 . 13 Tactical Retreats 10 | . . . . 1 1 4 1 . . 3 Traps | -11 -10 -10 -10 -8 -7 -7 -6 -6 -6 -6 ------- Run | Yrd Mat Min Sub Mat Fac Sto Fac Low Low Zio Traps Triggered 4 | . 1 . . 1 1 1 . . . . Indirectly . | . . . . . . . . . . . Trap Hack Attempts . | . . . . . . . . . . . Triggered . | . . . . . . . . . . . Disarmed . | . . . . . . . . . . . Reprogrammed . | . . . . . . . . . . . Reused . | . . . . . . . . . . . Traps Extracted . | . . . . . . . . . . . Installed . | . . . . . . . . . . . Triggered 1 | . . . . . . . . 1 . . Machines | -11 -10 -10 -10 -8 -7 -7 -6 -6 -6 -6 ---------- Run | Yrd Mat Min Sub Mat Fac Sto Fac Low Low Zio Machines Disabled 11 | . 1 . 1 1 1 5 . 1 . 1 Max in Single Turn 1 | . 1 . 1 1 1 1 . 1 . 1 Garrison Access 1 | . . . . . 1 . . . . . Machines Repaired . | . . . . . . . . . . . Machines Dismantled . | . . . . . . . . . . . Machines Sabotaged . | . . . . . . . . . . . Overloaded Fab Kills . | . . . . . . . . . . . Hacking | -11 -10 -10 -10 -8 -7 -7 -6 -6 -6 -6 --------- Run | Yrd Mat Min Sub Mat Fac Sto Fac Low Low Zio Machines Accessed 10 | . . . . . 4 6 . . . . Terminals 8 | . . . . . 2 6 . . . . Fabricators . | . . . . . . . . . . . Repair Stations . | . . . . . . . . . . . Recycling Units . | . . . . . . . . . . . Scanalyzers . | . . . . . . . . . . . Garrison Access 2 | . . . . . 2 . . . . . Total Hacks 22 | . . . . . 6 16 . . . . Successful 10 | . . . . . 2 8 . . . . Failed 12 | . . . . . 4 8 . . . . Catastrophic 3 | . . . . . 2 1 . . . . Database Lockouts . | . . . . . . . . . . . Manual 2 | . . . . . 2 . . . . . Terminals 18 | . . . . . 2 16 . . . . Fabricators . | . . . . . . . . . . . Repair Stations . | . . . . . . . . . . . Recycling Units . | . . . . . . . . . . . Scanalyzers . | . . . . . . . . . . . Garrison Access 4 | . . . . . 4 . . . . . Terminal Hacks 9 | . . . . . 1 8 . . . . Record 4 | . . . . . . 4 . . . . Open Door 3 | . . . . . . 3 . . . . Branch Access Points 1 | . . . . . 1 . . . . . Locate Traps 1 | . . . . . . 1 . . . . Fabricator Hacks . | . . . . . . . . . . . Repair Station Hacks . | . . . . . . . . . . . Recycling Unit Hacks . | . . . . . . . . . . . Scanalyzer . | . . . . . . . . . . . Garrison Access Hacks 1 | . . . . . 1 . . . . . Seal Access 1 | . . . . . 1 . . . . . Unauthorized Hacks . | . . . . . . . . . . . Terminals . | . . . . . . . . . . . Fabricators . | . . . . . . . . . . . Repair Stations . | . . . . . . . . . . . Recycling Units . | . . . . . . . . . . . Scanalyzers . | . . . . . . . . . . . Garrison Access . | . . . . . . . . . . . Data Cores Recovered 2 | . . . . . 1 . 1 . . . Used 1 | . . . . . 1 . . . . . Hacking Detections 6 | . . . . . 2 4 . . . . Full Trace Events 1 | . . . . . 1 . . . . . Feedback Events . | . . . . . . . . . . . Feedback Blocked . | . . . . . . . . . . . Robot Schematics Acquired 1 | . . . . . . . . . . 1 Robots Built . | . . . . . . . . . . . Authchips . | . . . . . . . . . . . Time . | . . . . . . . . . . . Total Robot Build Rating . | . . . . . . . . . . . Part Schematics Acquired 7 | . . . . . . . . . . 7 Parts Built . | . . . . . . . . . . . Authchips . | . . . . . . . . . . . Time . | . . . . . . . . . . . Total Part Build Rating . | . . . . . . . . . . . Parts Repaired . | . . . . . . . . . . . Time . | . . . . . . . . . . . Parts Recycled . | . . . . . . . . . . . Recycled Matter . | . . . . . . . . . . . Retrieved Matter . | . . . . . . . . . . . Retrieved Components . | . . . . . . . . . . . Parts Scanalyzed . | . . . . . . . . . . . Part Schematics Acquired . | . . . . . . . . . . . Parts Damaged . | . . . . . . . . . . . Bothacking | -11 -10 -10 -10 -8 -7 -7 -6 -6 -6 -6 ------------ Run | Yrd Mat Min Sub Mat Fac Sto Fac Low Low Zio Used RIF Installer . | . . . . . . . . . . . Robots Hacked . | . . . . . . . . . . . Non-combat . | . . . . . . . . . . . Combat . | . . . . . . . . . . . Robot Hacks Applied . | . . . . . . . . . . . Relay Couplers Released . | . . . . . . . . . . . Fabnet Peak Effective % . | . . . . . . . . . . . Robots Rewired . | . . . . . . . . . . . Allies Hacked 1 | . . . . . . . 1 . . . Hacks Repelled . | . . . . . . . . . . . Allies | -11 -10 -10 -10 -8 -7 -7 -6 -6 -6 -6 -------- Run | Yrd Mat Min Sub Mat Fac Sto Fac Low Low Zio Total Allies 12 | . . . . . . 12 . . . . Largest Group 10 | . . . . . . 10 9 . . . Highest-Rated Group 203 | . . . . . . 203 187 . . . Highest-Rated Ally 31 | . . . . . . 31 31 . . . Total Orders . | . . . . . . . . . . . Ally Attacks 100 | . . . . . . 32 68 . . . Total Damage 1181 | . . . . . . 414 767 . . . Kills 13 | . . . . . . 4 9 . . . Allies Corrupted . | . . . . . . . . . . . Allies Melted . | . . . . . . . . . . . Intel | -11 -10 -10 -10 -8 -7 -7 -6 -6 -6 -6 ------- Run | Yrd Mat Min Sub Mat Fac Sto Fac Low Low Zio Robot Analysis Total . | . . . . . . . . . . . Derelict Logs Recovered 7 | . . . 1 . . . . 2 2 2 Drone Launches . | . . . . . . . . . . . Drone Recoveries . | . . . . . . . . . . . Exploration | -11 -10 -10 -10 -8 -7 -7 -6 -6 -6 -6 ------------- Run | Yrd Mat Min Sub Mat Fac Sto Fac Low Low Zio Turns Passed 9040 | . 571 220 856 500 2008 1021 955 851 612 1446 Spaces Moved 5212 | 1 248 99 403 229 1215 663 545 454 542 813 Core 32 | . . . . . 28 . . 3 . 1 Treads . | . . . . . . . . . . . Legs 4502 | 1 248 99 403 229 1097 75 545 451 542 812 Wheels 678 | . . . . . 90 588 . . . . Hover . | . . . . . . . . . . . Flight . | . . . . . . . . . . . Fastest Speed 86 | 120 120 190 190 105 90 86 100 112 112 112 Average Speed 132 | 120 164 190 190 117 118 100 156 148 112 128 Slowest Speed 1050 | 120 190 190 190 190 700 183 187 1050 112 450 Overloaded Moves . | . . . . . . . . . . . Propulsion Burnouts . | . . . . . . . . . . . Robots Hopped . | . . . . . . . . . . . Cave-ins Triggered 4 | . . . . 1 3 . . . . . Exploration Rate (%) 40 | 2 46 17 32 22 36 75 18 57 63 74 Regions Visited 10 Branch Regions 6 Pre-discovered Areas 3 | . . . . . . . . . 1 2 Known Exits Taken 6 | . . . 1 . 1 1 1 1 1 . Unknown Exits Taken 4 | 1 1 1 . 1 . . . . . . Scrap Searched 2 | . . 1 . . . . . 1 . . Spaces Dug 294 | . . . . . 284 6 4 . . . Terrain Destroyed 566 | . 59 18 93 24 341 6 4 . . 21 Melee 16 | . . . . . 6 6 4 . . . Projectile . | . . . . . . . . . . . AOE 550 | . 59 18 93 24 335 . . . . 21 Terrain Rammed . | . . . . . . . . . . . Walls Destroyed . | . . . . . . . . . . . Machines Disabled . | . . . . . . . . . . . Actions | -11 -10 -10 -10 -8 -7 -7 -6 -6 -6 -6 --------- Run | Yrd Mat Min Sub Mat Fac Sto Fac Low Low Zio Total 6719 | . 358 118 449 410 1709 904 615 602 547 1007 Wait 723 | . 28 5 6 91 330 93 14 129 3 24 Move 5199 | . 247 98 402 228 1211 662 544 453 541 813 Hop . | . . . . . . . . . . . Pick Up 105 | . 19 2 2 18 28 16 13 1 1 5 Fast Attach 60 | . 2 . . 5 11 16 3 . 1 22 Attach 49 | . 1 . 3 13 11 9 6 2 . 4 Detach 2 | . . . . . . 1 1 . . . Swap 63 | . 11 2 3 2 16 6 4 1 . 18 Drop 126 | . 14 3 2 13 41 30 11 1 1 10 Fire 182 | . 36 8 31 40 47 . . . . 20 Melee 203 | . . . . . 11 67 19 15 . 91 Ram . | . . . . . . . . . . . Kick . | . . . . . . . . . . . Crush . | . . . . . . . . . . . Escape Stasis 7 | . . . . . 3 4 . . . . Rewire . | . . . . . . . . . . . Trap . | . . . . . . . . . . . Miscellaneous . | . . . . . . . . . . . Route ------- -11/Scrapyard -10/Materials -10/Mines -10/Subcaves -8/Materials -7/Factory (discovered 5 exits: *Fac x2 / *Sto / Low x2) -7/Storage -6/Factory -6/Lower Caves -6/Lower Caves -6/Zion (discovered 1 exit: [*Pro]) History --------- Turn | Location | Event 1 | -11/Scrapyard | Discovered new exit (range 0) 1 | -11/Scrapyard | Entered Materials 348 | -10/Materials | Build established: Mutant 557 | -10/Materials | Discovered new exit (range 8) 572 | -10/Materials | Entered Mines 769 | -10/Mines | Discovered new exit (range 12) 792 | -10/Mines | Entered Subcaves 970 | -10/Subcaves | Core integrity fell below 50% 1043 | -10/Subcaves | Ambushed by Subdweller buried in earth 1373 | -10/Subcaves | Identified exit to Materials 1499 | -10/Subcaves | Visited 4L-MR0's lab 1525 | -10/Subcaves | Found Prototype Leg 1648 | -10/Subcaves | Entered Materials 1648 | -8/Materials | Evolved 4 slots: Propulsion x2, Utility x2 1649 | -8/Materials | Identified Arachnoskeleton 1650 | -8/Materials | Attached Arachnoskeleton, gained temporary slots: Propulsion x3 1754 | -8/Materials | Destroyed 7 combat bots 1769 | -8/Materials | Crushed by falling debris 1957 | -8/Materials | Lost 5 parts (1p2n1u1w) 1984 | -8/Materials | Discovered new exit (range 9) 2148 | -8/Materials | Entered Factory 2148 | -7/Factory | Evolved 2 slots: Utility x2 2396 | -7/Factory | Build established: Scavenger-Mutant 2809 | -7/Factory | Build established: Mutant 3199 | -7/Factory | Discovered new exit (range 12) 3206 | -7/Factory | Identified exit to Storage 3206 | -7/Factory | Identified exit to Lower Caves 3217 | -7/Factory | Identified exit to Factory 3322 | -7/Factory | Discovered exit to Factory (range 6) 3702 | -7/Factory | Crushed by falling debris 3749 | -7/Factory | Crushed by falling debris 3752 | -7/Factory | Crushed by falling debris 3753 | -7/Factory | System corruption reached 10% 4046 | -7/Factory | Core integrity fell below 50% 4156 | -7/Factory | Entered Storage 4473 | -7/Storage | Build established: Gladiator 4793 | -7/Storage | Core integrity fell below 20% 4928 | -7/Storage | Found Prototype Launcher 4928 | -7/Storage | Identified Rocket Array 5017 | -7/Storage | Assisted by bots powering up and referring to "LRC-V3" 5134 | -7/Storage | Met a pair of Derelict thieves 5143 | -7/Storage | Discovered exit to Factory (range 10) 5177 | -7/Storage | Entered Factory 5177 | -6/Factory | Accompanied by 9 allies 5177 | -6/Factory | Evolved 2 slots: Utility x2 5326 | -6/Factory | Build established: Commander-Gladiator 5383 | -6/Factory | Lost 3 allies 5986 | -6/Factory | Build established: Scavenger-Gladiator 6074 | -6/Factory | Garrison activated, responded to threat 6106 | -6/Factory | Discovered new exit (range 15) 6130 | -6/Factory | Identified exit to Lower Caves 6132 | -6/Factory | Entered Lower Caves 6289 | -6/Lower Caves | Build established: Gladiator 6635 | -6/Lower Caves | Learned Factory stockpile data 6975 | -6/Lower Caves | Discovered new exit (range 7) 6980 | -6/Lower Caves | Identified exit to Lower Caves 6983 | -6/Lower Caves | Entered another Lower Caves area 7042 | -6/Lower Caves | Learned Factory security intel 7185 | -6/Lower Caves | Encountered a Warlord checkpoint 7367 | -6/Lower Caves | Discovered new exit (range 13) 7383 | -6/Lower Caves | Identified exit to Zion 7392 | -6/Lower Caves | Learned location of Extension (-5) 7595 | -6/Lower Caves | Entered Zion 7649 | -6/Zion | Discovered new exit (range 11) 7705 | -6/Zion | System corruption cleaned by Quarantine Array 7878 | -6/Zion | Met Imprinter 8151 | -6/Zion | Attacked by Zionites 8452 | -6/Zion | System corruption reached 10% 8482 | -6/Zion | Lost 5 parts (3n2u) 8566 | -6/Zion | Lost 3 parts (2n1u) 8668 | -6/Zion | Lost 4 parts (1p2n1u) 8893 | -6/Zion | Lost 3 parts (2n1u) 8900 | -6/Zion | Build established: Scavenger-Gladiator 8917 | -6/Zion | Core integrity fell below 50% 8968 | -6/Zion | Learned location of 1 exit from Factory 8996 | -6/Zion | System corruption reached 30% 9029 | -6/Zion | Spotted GK-6QR(B) 9032 | -6/Zion | Spotted EG-2KT(B) 9037 | -6/Zion | Core integrity fell below 20% 9041 | -6/Zion | Destroyed by GK-6QR(B) with Heavy Battle Rifle Last Messages --------------- 09012_ ZX-5ZP(z) rummages through the Twisted Machinery. 09016_ U3-CHK(z) pulls a Mak. Hammer out of the Twisted Machinery. 09017_ TB-SIH(z) pulls a Mak. Hammer out of the Twisted Machinery. 09019_ ZX-5ZP(z) pulls a Mak. Spear out of the Twisted Machinery. 09020_ R&XRM#J6ZUN IMNMS|8JD 09038_ Penetrated by Slug. 09038_ Knocked back. Map ----- +----------------------------------------------------+ | """"? ??????????????????????????#?????????? | | """"" ????????????????????????????????????? | | ##"#" % ""???????????????????#????????????????? | | """#""" """?????????##???????#???????????#?????? | | """""""" """?????????????????????????#?????#????? | | """ """"? ?????????#??#?????#????????#?????? | | "" """ "???????#????????????????????????? | | ""?????????????????????????#?????? | | " "????????????????????????????????? | | """" ????????????#??#####?#####??????? | | """"" ??????????#???#[/]"## ##?????? | | """"" ""???????????????#" "" ###???? | | """ "#???????????????#] ###### | | """ "##??????????????#" "" | | """ ""#??????????????#]|]"## | | " """ ""#??????????????####?## ##### | | " """ "#????#??????#?#??????# ##### | | "" "##???????????????????## | | ""##????????????#???????# ## | | " """#???#####????????????# ######## | | " ""##??##BB"############?# ##?????## | | " ""#####;BB""""""""""""#?# ##???### | | """"" ### "" """"#### #???## | | """"z""z# % ;### ##??# | | z % #### | | z z z @ g ### | | """" """ " #%zz% ###### ##?# | | """"" "#;# %"""" ""# ???# ##??? | | """"" "#;;BB" """"""""""# ??####??? | | """"" ""##BB"############ #### ?## | | "#######???????????# ## | | ""#????????????????? | | """#?????????????????????#### | | """ "###???????#?????#?????????## | | "" "#??#????????????????????### | | " "" ""????????????????????# ### | | """""?#??????????????????# | | ""##??????????????#?????# | | """""????????????????????#?#### | | """"????#???#??????????#???????# ## # | | ""#?????????????????????????##?#??##### | | """????????????#?????????????#???????## | | " ""????????????????????????????????#?# | | ""??????????#?????????????????#?????# | | ""???????????????????#??????????????## | | """ """?????????????????????????????????## | | """" """"" ?????????????????????????????????# | | """ """""?????????????????????#????????????## | | """ ""????????????????????????????#????????# | | """" ""?????????????????????????????????????# | +----------------------------------------------------+ Best States ------------- Heat Dissipation 54 Energy Generation 18 Energy Capacity 310 Matter Stores 300 Matter Capacity 300 Sight Range 20 Robot Scan Range 15 Terrain Scan Range 20 Terrain Scan Density 10 Armor Coverage 700 Resistance: KI 10 Phase Shifting 5 Evasion (%) 60 Targeting Accuracy 13 Melee Accuracy 11 Target Analysis 5 Salvage Targeting 1 Offensive Hacking 10 Item Schematics ----------------- Hvy. Shock Bomb Launcher | -6/Zion | Archive Matter Compressor | -6/Zion | Archive Adv. Thermal Generator | -6/Zion | Archive Imp. Force Field | -6/Zion | Archive Adv. Heat Sink | -6/Zion | Archive Hvy. Phase Cannon | -6/Zion | Archive Power Amplifier | -6/Zion | Archive Robot Schematics ------------------ R-06 Scavenger | -6/Zion | Archive Fabricated ------------ Nothing Alien Tech Used ----------------- None Achievements -------------- Monster Challenges ------------ None Game ------ Seed BombArchitectBasin Manual? 0 Play Time 01:17:16 Cumulative 64.6 hours Start 2024.10.05 @ 03:01:19 End 2024.10.05 @ 04:17:21 Sessions 1 Manual Loads 0 Difficulty Rogue Special Mode None Game No. 75 Rogue 75 Adventurer 0 Explorer 0 Win Type - Total 0 Types 0/0/0/0/0/0/0/0/0 Lore% 31 Gallery% 51 Achievement% 35 Wizard Run 0 Options --------- Layout 1 ASCII 0 Keyboard 0 Movement Mouse Keybinds 0 Fullscreen 2 Font 24/Smallcaps Map View 50x35 Zoom Use 0% Tactical HUD 1 Map Filters NONE Filters NONE Steam 1 RUN: a77e7aeb-35b3-4152-8607-e721fcf8c84b